bitfinex-derivatives/quotes_ETHF0:USTF0_20240917
["timestamp","ask_amount","ask_price","bid_price","bid_amount"]
[1726543197391,3.2078,2285.0,2284.9,0.43763]
[1726543197586,1.58,2285.0,2284.9,0.43762]
[1726543198086,1.58,2285.0,2284.9,0.7912]
[1726543198388,2.01761,2285.0,2284.9,0.4094]
[1726543198583,5.22541,2285.0,2284.9,0.4094]
[1726543198783,2.01761,2285.0,2284.9,0.4094]
[1726543198982,5.22541,2285.0,2284.9,0.4094]
[1726543199183,4.7878,2285.0,2284.9,0.4094]
[1726543199388,1.58,2285.0,2284.9,0.4094]
[1726543200586,4.7878,2285.0,2284.6,0.7889]
[1726543200781,1.58,2284.8,2284.7,0.83007]
[1726543205389,1.58,2284.8,2284.7,0.3924]
[1726543206495,0.8175,2284.9,2284.7,0.3924]
[1726543206799,1.58,2284.8,2284.7,0.83007]
[1726543206990,1.58,2284.8,2284.7,0.3924]
[1726543211396,2.01765,2284.8,2284.6,0.4071]
[1726543211593,0.83127,2284.7,2284.6,0.4071]
[1726543211895,0.3936,2284.7,2284.6,0.4071]
[1726543212090,0.83127,2284.7,2284.6,0.4071]
[1726543212699,4.03907,2284.7,2284.6,0.4071]
[1726543212898,3.6014,2284.7,2284.0,4.34925315]
[1726543213106,4.03908,2284.7,2284.4,0.43772]
[1726543213903,4.03908,2284.7,2284.5,0.4196]
[1726543214294,3.6014,2284.7,2284.6,0.43769]
[1726543214490,1.9736,2284.7,2284.6,0.399]
[1726543215299,1.9736,2284.7,2284.6,0.83669]
[1726543215800,1.9736,2284.7,2284.6,0.399]
[1726543216704,1.9736,2284.7,2284.6,0.83669]
[1726543217205,1.9736,2284.7,2284.6,0.399]
[1726543217503,1.9736,2284.7,2284.6,0.83669]
[1726543219199,2.41127,2284.7,2284.6,0.399]
[1726543220198,2.41127,2284.7,2284.6,0.83669]
[1726543221810,1.9736,2284.7,2284.6,0.83669]
[1726543223106,1.58,2284.7,2284.6,0.83669]
[1726543224911,1.20663,2284.9,2284.8,0.43765]
[1726543225106,2.78663,2284.9,2284.8,0.43765]
[1726543225605,2.78663,2284.9,2284.6,0.399]
[1726543225606,0.43765,2284.8,2284.6,0.399]
[1726543225803,1.58,2284.7,2284.6,0.83668]
[1726543228310,1.58,2284.7,2284.6,0.43768]
[1726543229514,2.01768,2284.7,2284.5,0.84849]
[1726543229722,0.8036,2284.6,2284.5,0.8485]
[1726543238325,1.24129,2284.6,2284.5,0.8485]
[1726543238526,0.8036,2284.6,2284.5,0.8485]
[1726543240730,0.8036,2284.6,2284.5,0.4108]
[1726543241031,0.8036,2284.6,2284.5,0.84851]
[1726543241419,0.43764,2284.9,2284.7,0.43765]
[1726543241716,1.58,2284.8,2284.7,0.43765]
[1726543257843,1.58,2284.8,2284.7,0.83105]
[1726543260752,1.9612,2284.8,2284.7,0.83105]
[1726543265454,1.9612,2284.8,2284.7,0.43765]
[1726543265853,0.43767,2284.7,2284.6,0.43767]
[1726543266049,1.24387,2284.7,2284.6,0.43767]
[1726543266250,1.24387,2284.7,2284.2,5.84416315]
[1726543266251,4.014,2284.7,2284.2,6.26076315]
[1726543266448,1.24388,2284.7,2284.6,0.43769]
[1726543267065,4.45168,2284.7,2284.6,0.43769]
[1726543267249,0.4377,2284.6,2284.5,0.4377]
[1726543267450,4.45168,2284.7,2284.6,0.43769]
[1726543267754,6.03167,2284.7,2284.6,0.43769]
[1726543268655,1.987,2284.7,2284.6,0.43769]
[1726543268852,0.407,2284.7,2284.6,0.43769]
[1726543269052,1.987,2284.7,2284.6,4.81449]
[1726543269351,1.987,2284.7,2284.6,0.43769]
[1726543271352,2.42467,2284.7,2284.6,0.43769]
[1726543272855,2.42467,2284.7,2284.5,0.43769]
[1726543273059,1.9695,2284.6,2284.5,0.43769]
[1726543277159,6.3471,2284.6,2284.2,0.4166]
[1726543277367,1.58,2284.3,2284.2,0.43776]
[1726543280864,1.58,2284.3,2284.0,0.4047]
[1726543281162,0.3858,2284.4,2283.9,3.6113]
[1726543281463,1.58,2284.5,2284.2,3.2078]
[1726543281658,1.58,2284.5,2284.3,1.2181]
[1726543281865,1.58,2284.5,2284.4,0.43771]
[1726543282868,4.69165,2284.9,2284.4,0.43771]
[1726543282869,1.58,2284.7,2284.6,0.43768]
[1726543287476,1.58,2284.7,2284.6,1.24388]
[1726543288868,1.58,2284.7,2284.6,0.83868]
[1726543289471,1.58,2284.7,2284.6,0.401]
[1726543289669,2.41237,2284.7,2284.4,0.43771]
[1726543289873,2.83699,2284.6,2284.3,0.84183]
[1726543290076,1.58,2284.4,2284.2,0.83875]
[1726543290373,1.58,2284.4,2283.9,4.34925315]
[1726543290374,0.83246,2284.3,2284.0,0.43779]
[1726543290576,1.58,2284.0,2283.9,4.45282]
[1726543291083,1.58,2284.0,2283.9,4.04872]
[1726543302887,1.58,2284.0,2283.9,0.84092]
[1726543303995,1.58,2284.0,2283.9,0.43782]
[1726543306787,1.9931,2284.0,2283.9,0.43782]
[1726543308790,9.5793,2284.0,2283.6,0.43786]
[1726543308989,0.43786,2283.7,2283.4,0.7998]
[1726543309199,1.58,2283.5,2283.4,1.23772]
[1726543309692,1.58,2283.5,2283.4,5.61692]
[1726543310795,1.58,2283.5,2283.4,1.23772]
[1726543312790,1.58,2283.6,2283.4,5.179]
[1726543312991,1.58,2283.6,2283.5,0.4379]
[1726543316693,1.9895,2283.6,2283.5,0.4379]
[1726543318702,2.42739,2283.6,2283.4,0.43791]
[1726543318999,2.3922,2283.5,2283.4,0.43791]
[1726543319596,2.8301,2283.5,2283.3,0.43792]
[1726543319792,2.3922,2283.5,2283.4,0.43792]
[1726543320193,2.8301,2283.5,2283.2,0.7916]
[1726543320394,1.58,2283.3,2283.2,1.22955]
[1726543329999,1.58,2283.3,2283.2,0.43795]
[1726543330402,1.9793,2283.3,2283.2,0.43795]
[1726543330803,0.4137,2283.5,2283.4,0.43792]
[1726543331002,1.9937,2283.5,2283.4,0.43792]
[1726543332607,4.152,2283.9,2283.8,0.43784]
[1726543332906,1.92365999,2283.9,2283.8,5.83486]
[1726543333112,1.92365999,2283.9,2283.8,15.11865]
[1726543334104,0.102,2284.4,2284.0,1.09448]
[1726543334298,0.236,2284.6,2284.5,0.43771]
[1726543334299,1.58,2284.6,2284.5,0.43771]
[1726543336414,1.58,2284.6,2284.5,4.81531]
[1726543337003,0.4086,2284.8,2284.5,4.81531]
[1726543337206,4.1422,2285.1,2285.0,0.43761]
[1726543337207,1.682,2285.1,2285.0,0.43761]
[1726543337411,1.58,2285.1,2285.0,0.43761]
[1726543337812,1.58,2285.1,2284.9,3.64542]
[1726543338111,1.58,2285.0,2284.9,3.64543]
[1726543338302,1.58,2285.0,2284.9,0.43763]
[1726543338508,1.58,2285.0,2284.7,0.43766]
[1726543338708,1.58,2284.8,2284.7,0.43766]
[1726543339104,1.9879,2284.8,2284.7,0.43766]
[1726543339515,0.5106,2285.3,2284.6,4.30202]
[1726543339814,1.24867,2285.2,2284.8,0.43764]
[1726543340916,0.8111,2285.2,2284.9,0.43763]
[1726543341118,1.58,2285.0,2284.8,0.43764]
[1726543341309,1.58,2284.9,2284.8,0.43764]
[1726543345325,2.01763,2284.9,2284.6,3.64547]
[1726543345518,1.58,2284.7,2284.6,0.43769]
[1726543347112,0.7858,2284.8,2284.7,0.43767]
[1726543349311,5.834,2285.3,2284.7,11.9568]
[1726543349518,1.58,2285.2,2285.1,0.43757]
[1726543350523,2.3901,2285.2,2285.1,0.43757]
[1726543356337,2.82768,2285.2,2284.9,0.43762]
[1726543356539,1.58,2284.9,2284.8,0.43763]
[1726543357239,5.9568,2284.9,2284.6,0.43767]
[1726543357436,1.58,2284.7,2284.2,3.6092]
[1726543357833,0.392,2284.6,2284.5,0.43771]
[1726543358943,0.392,2284.6,2284.5,3.64551]
[1726543359132,1.58,2284.7,2284.6,0.43769]
[1726543371147,0.8187,2284.8,2284.7,0.43767]
[1726543371536,0.8187,2284.8,2284.7,4.81447]
[1726543372437,0.4164,2285.2,2285.1,0.43759]
[1726543372746,1.9964,2285.2,2285.1,0.43759]
[1726543373848,1.9964,2285.2,2284.9,3.2078]
[1726543373849,1.9964,2285.2,2285.0,0.4376]
[1726543374041,1.58,2285.1,2285.0,0.4376]
[1726543378252,1.58,2285.1,2284.9,3.64542]
[1726543378456,2.01759,2285.1,2284.8,0.43763]
[1726543378645,0.85398,2285.2,2284.9,0.43762]
[1726543378949,1.58,2285.0,2284.9,0.43762]
[1726543381041,1.58,2285.0,2284.8,0.43764]
[1726543381238,2.391,2284.9,2284.8,0.43764]
[1726543387950,0.811,2284.9,2284.8,0.43764]
[1726543388554,1.2,2284.9,2284.8,0.43764]
[1726543390562,0.811,2284.9,2284.8,0.43764]
[1726543390752,0.4127,2284.9,2284.8,4.81444]
[1726543390953,0.4058,2285.1,2285.0,0.43761]
[1726543391151,0.8271,2285.1,2285.0,3.64541]
[1726543405065,0.8271,2285.1,2285.0,10.69544]
[1726543406964,0.8271,2285.1,2285.0,7.48764]
[1726543407166,0.8271,2285.1,2285.0,10.69544]
[1726543407975,0.4183,2285.3,2285.2,0.43757]
[1726543408271,0.8227,2285.3,2285.2,0.43757]
[1726543409663,0.8227,2285.3,2285.2,4.81357]
[1726543409869,0.4059,2285.6,2285.5,0.43751]
[1726543410068,1.9859,2285.6,2285.5,0.43751]
[1726543412471,0.4059,2285.6,2285.5,0.43751]
[1726543415874,1.9859,2285.6,2285.5,0.43751]
[1726543416078,6.3611,2285.6,2285.0,3.2078]
[1726543416272,1.58,2285.4,2285.3,0.43754]
[1726543416469,1.58,2285.4,2285.2,0.43756]
[1726543416671,1.2074,2285.3,2285.2,0.43756]
[1726543417575,0.8261,2285.3,2285.2,0.43756]
[1726543420670,0.8261,2285.3,2285.2,1.5315]
[1726543422168,0.8261,2285.3,2285.2,5.9075]
[1726543422374,0.4155,2285.3,2285.2,5.9075]
[1726543423976,0.4155,2285.3,2285.2,4.81356]
[1726543424180,0.4155,2285.3,2285.2,0.43756]
[1726543424678,1.9955,2285.3,2285.2,0.43756]
[1726543428682,0.4155,2285.3,2285.2,0.43756]
[1726543433185,0.4155,2285.3,2285.2,4.81356]
[1726543435080,0.4155,2285.3,2285.2,8.02136]
[1726543436375,0.3891,2285.6,2285.2,8.67774]
[1726543436587,0.3891,2285.6,2285.5,0.43751]
[1726543437579,0.3891,2285.6,2285.5,5.22531]
[1726543438691,0.3891,2285.6,2285.5,3.64531]
[1726543438887,0.7757,2285.6,2285.5,3.64531]
[1726543439385,0.7757,2285.6,2285.5,0.43751]
[1726543439888,0.7757,2285.6,2285.5,3.64531]
[1726543441285,0.7757,2285.6,2285.5,0.43751]
[1726543441691,0.7757,2285.6,2285.5,3.64531]
[1726543442097,0.3891,2285.6,2285.5,3.64531]
[1726543443198,0.8068,2285.6,2285.5,3.64531]
[1726543443392,0.8068,2285.6,2285.5,0.43751]
[1726543446101,0.8068,2285.6,2285.5,3.64531]
[1726543447294,0.8068,2285.6,2285.5,0.43751]
[1726543448198,0.3891,2285.6,2285.5,0.43751]
[1726543448396,0.3891,2285.6,2285.5,3.64531]
[1726543451602,0.3891,2285.6,2285.5,0.43751]
[1726543452299,0.3891,2285.6,2285.5,3.64531]
[1726543452497,0.393,2285.7,2285.6,0.43749]
[1726543466114,6.3482,2285.7,2285.2,3.2078]
[1726543466321,1.58,2285.3,2285.1,0.84998]
[1726543466503,2.7995,2285.2,2284.9,3.2078]
[1726543466706,2.7995,2285.2,2285.0,0.43761]
[1726543467604,1.2195,2285.2,2285.1,0.43759]
[1726543467804,0.799,2285.2,2285.1,2.01759]
[1726543468010,0.4108,2285.2,2285.1,2.01759]
[1726543469419,0.3872,2285.5,2285.4,0.43753]
[1726543469609,0.4168,2285.5,2285.4,5.22533]
[1726543472310,0.4168,2285.5,2285.4,3.64533]
[1726543474114,0.4168,2285.5,2285.4,0.43753]
[1726543474714,0.4168,2285.5,2285.4,3.64533]
[1726543475508,0.4168,2285.5,2285.4,0.43753]
[1726543476017,0.4168,2285.5,2285.4,3.64533]
[1726543476207,0.4168,2285.5,2285.4,0.43753]
[1726543476609,0.4168,2285.5,2285.4,3.64533]
[1726543476812,0.4168,2285.5,2285.4,0.43753]
[1726543477016,0.4168,2285.5,2285.4,3.64533]
[1726543477420,0.4168,2285.5,2285.4,0.43753]
[1726543478011,0.4168,2285.5,2285.4,3.64533]
[1726543478620,0.4168,2285.5,2285.4,0.43753]
[1726543500334,0.4168,2285.5,2285.2,4.70842]
[1726543500335,0.4168,2285.5,2285.2,3.6145]
[1726543500639,0.4168,2285.5,2285.3,0.43754]
[1726543500640,0.3834,2285.4,2285.3,0.43754]
[1726543505237,0.3834,2285.4,2285.3,3.64534]
[1726543512041,0.4168,2285.5,2285.4,0.43753]
[1726543521351,0.4168,2285.5,2285.4,1.57898315]
[1726543522456,0.4168,2285.5,2285.4,0.43753]
[1726543535569,0.4168,2285.5,2285.4,3.64533]
[1726543547869,0.102,2286.0,2285.5,1.09379]
[1726543548071,0.7759,2285.8,2285.7,0.43747]
[1726543563504,0.7759,2285.8,2285.7,3.64527]
[1726543574708,0.3826,2285.8,2285.7,3.64527]
[1726543576409,0.3826,2285.8,2285.7,5.22527]
[1726543577109,0.3836,2286.0,2285.9,0.43744]
[1726543577408,0.7765,2286.0,2285.9,2.01744]
[1726543577801,0.7765,2286.0,2285.9,2.43384]
[1726543579219,0.3929,2286.0,2285.9,3.52744]
[1726543579423,0.4167,2286.1,2286.0,0.43742]
[1726543579708,0.4167,2286.1,2286.0,6.31877]
[1726543580115,0.4167,2286.1,2286.0,10.69317]
[1726543583502,0.3879,2286.3,2286.2,0.43738]
[1726543583818,0.3879,2286.3,2286.2,2.01738]
[1726543584012,0.3879,2286.3,2286.2,2.40668]
[1726543585117,0.3879,2286.3,2286.2,0.82668]
[1726543595626,0.3879,2286.3,2286.2,0.43738]
[1726543595824,0.3879,2286.3,2286.1,0.43739]
[1726543596023,0.3989,2286.2,2286.1,0.43739]
[1726543611037,0.3879,2286.3,2286.1,0.43739]
[1726543611437,0.3879,2286.3,2286.2,0.4038]
[1726543613137,0.3879,2286.3,2286.2,0.84118]
[1726543618644,0.3879,2286.3,2286.2,0.43738]
[1726543618847,0.3879,2286.3,2286.1,0.3939]
[1726543619146,0.3879,2286.3,2286.2,0.43738]
[1726543625243,0.43742,2286.0,2285.9,1.14145315]
[1726543625551,8.01743,2286.0,2285.8,2.14963973]
[1726543625744,4.7717,2285.9,2285.8,1.71217973]
[1726543626046,5.20914,2285.9,2285.8,1.71217973]
[1726543626247,11.20914,2285.9,2285.8,1.71217973]
[1726543626844,10.7717,2285.9,2285.8,1.71217973]
[1726543628350,11.20914,2285.9,2285.8,1.71217973]
[1726543628551,12.01524,2285.9,2285.8,1.71217973]
[1726543628752,12.01525,2285.9,2285.6,0.43748]
[1726543629048,1.64085,2285.9,2285.7,0.43748]
[1726543629451,4.3752,2285.8,2285.7,0.43748]
[1726543631751,6.39266,2285.8,2285.6,0.43748]
[1726543632055,6.39266,2285.8,2285.2,1.23509]
[1726543632056,0.43748,2285.7,2285.2,1.7221839]
[1726543632348,1.58,2285.3,2285.2,2.1597539]
[1726543632548,0.43757,2285.2,2285.1,2.2962452]
[1726543632760,5.62167,2285.2,2285.1,2.2962452]
[1726543632952,15.99767,2285.2,2285.1,2.2962452]
[1726543633145,17.09161,2285.2,2285.1,1.5480291]
[1726543633345,0.43761,2285.0,2284.9,2.8703065]
[1726543633552,2.01761,2285.0,2284.9,2.8703065]
[1726543633752,12.39441,2285.0,2284.9,2.8703065]
[1726543635150,12.71472493,2285.0,2284.9,2.8703065]
[1726543635454,12.39441,2285.0,2284.9,2.8703065]
[1726543635956,1.09402,2285.1,2284.9,3.3079265]
[1726543635957,1.58,2285.1,2284.9,3.3079265]
[1726543636153,1.58,2285.1,2285.0,0.4021]
[1726543636353,1.58,2285.1,2285.0,0.83971]
[1726543638160,0.3963,2285.2,2285.1,0.43759]
[1726543638549,0.3963,2285.2,2285.1,0.84599]
[1726543639646,3.2078,2285.5,2285.1,0.4084]
[1726543639849,0.4101,2285.4,2285.2,0.43756]
[1726543640253,0.4101,2285.4,2285.1,0.4084]
[1726543640254,1.58,2285.3,2285.1,0.84598]
[1726543641858,0.4101,2285.4,2285.3,0.43755]
[1726543642165,1.58,2285.6,2285.4,0.43752]
[1726543642355,1.58,2285.6,2285.3,0.43754]
[1726543642847,1.58,2285.6,2285.4,0.3884]
[1726543644160,1.58,2285.6,2285.4,0.82593]
[1726543644460,1.58,2285.6,2285.4,0.3884]
[1726543644760,2.0175,2285.6,2285.4,0.3884]
[1726543646467,6.3927,2285.6,2285.3,0.43754]
[1726543646660,1.58,2285.4,2285.2,0.43756]
[1726543647055,0.3919,2285.3,2285.2,0.43756]
[1726543647986,5.20547,2285.3,2285.0,0.8397]
[1726543648152,1.58,2285.2,2285.0,0.8397]
[1726543648561,2.01757,2285.2,2285.0,0.8397]
[1726543648865,9.60137,2285.2,2285.0,0.8397]
[1726543649254,6.39357,2285.2,2285.0,0.8397]
[1726543649454,9.60137,2285.2,2285.0,0.8397]
[1726543649655,0.43759,2285.1,2284.9,0.43763]
[1726543649863,1.58,2285.0,2284.9,0.43763]
[1726543650056,0.4157,2285.0,2284.9,0.43763]
[1726543650963,5.23011,2285.0,2284.8,0.43764]
[1726543651269,0.85331,2285.0,2284.8,0.43764]
[1726543651953,7.7968,2284.9,2284.7,0.3875]
[1726543652159,0.43765,2284.8,2284.7,0.3875]
[1726543652355,4.81445,2284.8,2284.7,0.3875]
[1726543657064,4.3768,2284.8,2284.5,0.8123]
[1726543657261,3.42,2284.6,2284.5,1.25001]
[1726543658267,3.42,2284.6,2284.5,0.8123]
[1726543658569,3.85769,2284.6,2284.5,0.8123]
[1726543658764,3.85769,2284.6,2284.4,0.43771]
[1726543658962,3.85769,2284.6,2284.5,0.3843]
[1726543660975,3.42,2284.6,2284.5,0.3843]
[1726543661175,3.85769,2284.6,2284.5,0.3843]
[1726543662466,3.42,2284.6,2284.5,0.82201]
[1726543663573,3.42,2284.6,2284.5,0.3843]
[1726543665267,3.42,2284.6,2284.5,0.82201]
[1726543665465,3.85769,2284.6,2284.5,0.3843]
[1726543666480,3.42,2284.6,2284.5,0.82201]
[1726543668873,3.85769,2284.6,2284.4,0.43771]
[1726543669073,3.8577,2284.6,2284.4,0.43772]
[1726543669976,3.8577,2284.6,2284.5,0.43771]
[1726543671066,3.8577,2284.6,2284.3,0.7767]
[1726543671067,3.8577,2284.6,2284.4,0.43771]
[1726543671970,1.58,2284.5,2284.4,0.43771]
[1726543680879,0.82988,2284.7,2284.5,0.4377]
[1726543680880,1.58,2284.6,2284.5,0.4377]
[1726543683282,1.58,2284.6,2284.3,0.3887]
[1726543683486,1.58,2284.6,2284.4,0.43771]
[1726543683788,1.58,2284.6,2284.5,0.43771]
[1726543686288,0.3922,2284.7,2284.6,0.43769]
[1726543686480,1.9722,2284.7,2284.6,0.81999]
[1726543687188,0.43762,2285.0,2284.7,0.43767]
[1726543687488,0.43762,2285.0,2284.7,0.83207]
[1726543687489,1.58,2284.8,2284.7,0.83207]
[1726543688184,0.84162,2285.0,2284.8,0.43764]
[1726543688383,1.58,2284.9,2284.8,0.43764]
[1726543694496,2.01763,2284.9,2284.8,0.43764]
[1726543694691,5.22545,2284.9,2284.7,0.83206]
[1726543695399,0.43765,2284.8,2284.7,0.83206]
[1726543700295,3.64545,2284.8,2284.7,0.83206]
[1726543700496,3.2078,2284.8,2284.7,0.83206]
[1726543700701,1.58,2284.9,2284.8,0.43765]
[1726543701103,2.01763,2284.9,2284.8,0.43765]
[1726543701304,2.01763,2284.9,2284.7,1.24765]
[1726543703510,1.58,2284.9,2284.8,0.43765]
[1726543722127,2.42162,2285.0,2284.8,0.43765]
[1726543722623,1.984,2285.0,2284.9,0.43763]
[1726543723434,0.404,2285.0,2284.9,0.43763]
[1726543723625,0.53954,2285.4,2284.9,4.3768]
[1726543723927,3.4438,2285.6,2285.5,0.43751]
[1726543723928,3.3098,2285.6,2285.5,0.43751]
[1726543724119,3.2078,2285.6,2285.2,1.58]
[1726543724315,3.2078,2285.6,2285.5,0.43751]
[1726543724722,0.3948,2285.8,2285.5,0.3883]
[1726543725019,0.3948,2285.8,2285.6,0.43749]
[1726543725224,0.3948,2285.8,2285.7,0.4132]
[1726543725432,0.3948,2285.8,2285.7,0.81]
[1726543726524,1.58,2285.9,2285.7,1.24747]
[1726543727322,1.58,2285.9,2285.7,0.81]
[1726543728032,1.9815,2286.1,2285.7,5.5978]
[1726543728228,1.9815,2286.1,2285.9,0.43744]
[1726543728422,1.9815,2286.1,2286.0,0.3826]
[1726543728724,1.9815,2286.1,2286.0,0.82002]
[1726543728917,1.58,2286.1,2286.0,0.82002]
[1726543735533,4.152,2286.5,2286.2,0.43738]
[1726543735735,2.42785,2286.4,2286.1,1.23609]
[1726543735937,2.42785,2286.4,2286.2,0.43738]
[1726543736633,1.9905,2286.4,2286.2,0.43738]
[1726543741337,2.42785,2286.4,2286.2,0.43737]
[1726543741639,1.9905,2286.4,2286.2,0.43737]
[1726543742052,1.9905,2286.4,2286.3,0.43736]
[1726543742334,1.9905,2286.4,2286.2,0.43738]
[1726543742540,1.58,2286.3,2286.2,0.43738]
[1726543747437,2.01736,2286.3,2286.2,0.43738]
[1726543747637,2.01736,2286.3,2286.1,0.7987]
[1726543748638,2.01736,2286.3,2286.2,0.43738]
[1726543748837,2.81766,2286.3,2286.2,0.43738]
[1726543749645,2.81766,2286.3,2286.1,0.43739]
[1726543750044,0.43739,2286.2,2286.0,0.82001]
[1726543750338,0.43743,2286.0,2285.9,0.43744]
[1726543750539,0.43744,2285.9,2285.8,0.4075]
[1726543750746,5.22523,2286.0,2285.8,0.84494]
[1726543751343,0.43744,2285.9,2285.8,0.84494]
[1726543751544,5.22523,2286.0,2285.9,0.43744]
[1726543752140,5.22523,2286.0,2285.8,0.84494]
[1726543752339,5.22523,2286.0,2285.9,0.43744]
[1726543753644,4.7878,2286.0,2285.9,0.43744]
[1726543754348,3.2078,2286.0,2285.9,0.43744]
[1726543754546,3.2078,2286.0,2285.9,0.82174]
[1726543755439,2.43591,2286.1,2285.9,0.82174]
[1726543759355,2.43591,2286.1,2286.0,0.43742]
[1726543759645,2.43591,2286.1,2285.9,0.82172]
[1726543759949,0.85591,2286.1,2285.9,0.82172]
[1726543760146,2.43591,2286.1,2285.9,0.82172]
[1726543760844,0.4185,2286.1,2286.0,0.43742]
[1726543761047,0.4185,2286.1,2286.0,0.83232]
[1726543761451,5.22516,2286.3,2286.1,0.43739]
[1726543761647,5.61486,2286.3,2286.2,0.8041]
[1726543761947,5.1775,2286.3,2286.2,1.24148]
[1726543762550,3.5975,2286.3,2286.2,1.24148]
[1726543766851,5.1775,2286.3,2286.2,1.24148]
[1726543767247,5.1775,2286.3,2286.2,0.8041]
[1726543767453,5.1775,2286.3,2286.2,1.24148]
[1726543769759,1.9697,2286.3,2286.2,1.24148]
[1726543770057,6.78066,2286.3,2286.1,0.43739]
[1726543770255,1.58,2286.2,2286.1,0.43739]
[1726543770561,0.4374,2286.1,2286.0,0.3949]
[1726543770751,0.43741,2286.1,2285.9,0.85292]
[1726543770950,1.977,2286.0,2285.9,0.85292]
[1726543774163,1.977,2286.0,2285.9,0.85294]
[1726543774358,2.41442,2286.0,2285.9,0.4155]
[1726543774863,2.41442,2286.0,2285.9,0.85294]
[1726543775062,2.41442,2286.0,2285.9,0.4155]
[1726543775563,2.41442,2286.0,2285.9,0.85294]
[1726543775760,0.397,2286.0,2285.9,0.85294]
[1726543776667,0.83442,2286.0,2285.9,0.4155]
[1726543777261,2.41442,2286.0,2285.9,0.4155]
[1726543778353,2.41442,2286.0,2285.9,0.85294]
[1726543783363,0.397,2286.0,2285.9,0.85294]
[1726543783566,3.2078,2286.1,2286.0,0.43742]
[1726543783958,3.2078,2286.1,2286.0,0.85222]
[1726543785067,4.7878,2286.1,2286.0,0.85222]
[1726543786571,5.2252,2286.1,2286.0,0.85222]
[1726543786782,5.2252,2286.1,2286.0,0.43742]
[1726543789565,2.0174,2286.1,2286.0,0.43742]
[1726543793567,1.58,2286.1,2286.0,0.43742]
[1726543794265,2.0174,2286.1,2286.0,0.43742]
[1726543794671,1.58,2286.1,2286.0,0.43742]
[1726543796874,2.0174,2286.1,2286.0,0.43742]
[1726543797169,1.58,2286.1,2286.0,0.43742]
[1726543797576,2.0174,2286.1,2286.0,0.43742]
[1726543797776,1.58,2286.1,2286.0,0.43742]
[1726543800880,0.4077,2286.2,2286.1,0.4374]
[1726543801083,2.42509,2286.2,2286.0,0.43741]
[1726543801374,2.42509,2286.2,2286.1,0.4059]
[1726543801579,0.43735,2286.4,2286.1,0.4059]
[1726543801875,0.43734,2286.4,2286.3,0.43736]
[1726543802179,0.43734,2286.4,2286.2,0.84287]
[1726543802382,0.43734,2286.4,2286.3,0.4079]
[1726543802578,0.43734,2286.4,2286.3,0.84526]
[1726543802874,0.43734,2286.4,2286.3,0.4079]
[1726543803078,2.01734,2286.4,2286.3,0.4079]
[1726543803280,5.22514,2286.4,2286.3,0.4079]
[1726543805583,2.01734,2286.4,2286.3,0.84526]
[1726543805772,1.58,2286.4,2286.3,0.84526]
[1726543806875,1.58,2286.4,2286.3,0.4079]
[1726543806876,2.01734,2286.4,2286.3,0.4079]
[1726543807180,2.01734,2286.4,2286.3,0.84526]
[1726543810289,2.01734,2286.4,2286.3,0.4079]
[1726543810485,2.01734,2286.4,2286.3,0.84526]
[1726543811990,1.58,2286.4,2286.3,0.84526]
[1726543812194,5.64004,2286.5,2286.3,0.84526]
[1726543812392,5.2027,2286.5,2286.3,0.84526]
[1726543812891,0.43734,2286.4,2286.3,0.84526]
[1726543815087,2.01734,2286.4,2286.3,0.84526]
[1726543819391,4.06003,2286.5,2286.4,0.43734]
[1726543819600,5.64003,2286.5,2286.3,0.84525]
[1726543819892,5.2027,2286.5,2286.3,0.84525]
[1726543820191,5.64004,2286.5,2286.3,0.84525]
[1726543820498,2.43224,2286.5,2286.3,0.84525]
[1726543820793,5.64004,2286.5,2286.3,0.84525]
[1726543821494,2.43224,2286.5,2286.3,0.84525]
[1726543821701,5.2027,2286.5,2286.4,0.43734]
[1726543821898,1.9949,2286.5,2286.4,0.43734]
[1726543822394,1.58,2286.5,2286.4,0.43734]
[1726543832398,1.58,2286.5,2286.3,0.4079]
[1726543832399,0.43734,2286.4,2286.3,0.4079]
[1726543832595,1.9611,2286.4,2286.3,0.84526]
[1726543834204,2.39844,2286.4,2286.3,0.4079]
[1726543837008,2.39844,2286.4,2286.3,0.84526]
[1726543843014,1.9611,2286.4,2286.3,0.84526]
[1726543843510,0.3811,2286.4,2286.3,0.84526]
[1726543846613,2.01732,2286.6,2286.3,0.4079]
[1726543846822,2.41802,2286.6,2286.4,0.3838]
[1726543847031,0.4007,2286.6,2286.5,0.43732]
[1726543847233,0.4007,2286.6,2286.5,0.82632]
[1726543849122,1.9807,2286.6,2286.5,0.82632]
[1726543849328,2.418,2286.6,2286.5,0.43732]
[1726543850030,1.9807,2286.6,2286.5,0.43732]
[1726543850235,1.9807,2286.6,2286.5,0.83492]
[1726543851121,2.418,2286.6,2286.5,0.83492]
[1726543852327,1.9807,2286.6,2286.5,0.83492]
[1726543853537,0.4007,2286.6,2286.5,0.83492]
[1726543854436,0.4007,2286.6,2286.5,0.3976]
[1726543854833,3.64507,2286.8,2286.6,0.4373]
[1726543855137,2.43938,2286.7,2286.6,0.408]
[1726543856728,5.64718,2286.7,2286.6,0.408]
[1726543857431,0.4373,2286.6,2286.5,0.3976]